[Event "Live Chess"]
[Site "Chess.com"]
[Date "2021.09.10"]
[Round "3"]
[White "MMSANCHEZ"]
[Black "GGuseinov"]
[Result "0-1"]
[CurrentPosition "6k1/1p2ppb1/p1p3p1/4PnBP/2PrQPp1/8/Pq2N1K1/4R3 w - -"]
[Timezone "UTC"]
[ECO "E73"]
[ECOUrl "https://www.chess.com/openings/Kings-Indian-Defense-Standard-Development-5...O-O"]
[UTCDate "2021.09.10"]
[UTCTime "01:30:11"]
[WhiteElo "2264"]
[BlackElo "2563"]
[TimeControl "2100+5"]
[Termination "GGuseinov won by resignation"]
[StartTime "01:30:11"]
[EndDate "2021.09.10"]
[EndTime "02:08:42"]
[Link "https://www.chess.com/game/live/24976281217"]

1. d4 {[%clk 0:35:02.2]} 1... Nf6 {[%clk 0:35:00.3]} 2. c4 {[%clk 0:35:05.5]} 2... g6 {[%clk 0:35:04.1]} 3. Nc3 {[%clk 0:35:09.4]} 3... Bg7 {[%clk 0:35:08.4]} 4. e4 {[%clk 0:35:13]} 4... d6 {[%clk 0:35:06.7]} 5. Be2 {[%clk 0:35:16.5]} 5... O-O {[%clk 0:35:10.3]} 6. h4 {[%clk 0:35:19.6]} 6... h5 {[%clk 0:35:05.6]} 7. Nf3 {[%clk 0:35:19.2]} 7... c6 {[%clk 0:34:54.4]} 8. Bg5 {[%clk 0:35:09.9]} 8... Na6 {[%clk 0:34:53.7]} 9. O-O {[%clk 0:34:33]} 9... Nh7 {[%clk 0:34:27]} 10. Bf4 {[%clk 0:33:53]} 10... Bg4 {[%clk 0:34:28.5]} 11. e5 {[%clk 0:32:54.6]} 11... Nc7 {[%clk 0:34:18.9]} 12. Ng5 {[%clk 0:29:58]} 12... Nxg5 {[%clk 0:33:20]} 13. Bxg5 {[%clk 0:26:02.8]} 13... Bxe2 {[%clk 0:32:50.1]} 14. Qxe2 {[%clk 0:26:03.7]} 14... Ne6 {[%clk 0:32:48.4]} 15. Rad1 {[%clk 0:25:39.6]} 15... dxe5 {[%clk 0:32:49.6]} 16. dxe5 {[%clk 0:25:08.6]} 16... Qc7 {[%clk 0:32:51]} 17. Rfe1 {[%clk 0:23:09.7]} 17... Rad8 {[%clk 0:32:46.4]} 18. Qe3 {[%clk 0:23:06.2]} 18... Rxd1 {[%clk 0:32:38.4]} 19. Nxd1 {[%clk 0:22:43]} 19... Rd8 {[%clk 0:32:39.1]} 20. Nc3 {[%clk 0:21:55.5]} 20... a6 {[%clk 0:32:24.3]} 21. f4 {[%clk 0:19:07.9]} 21... Nd4 {[%clk 0:31:50.3]} 22. Qe4 {[%clk 0:15:13.9]} 22... Nf5 {[%clk 0:31:22.3]} 23. g4 {[%clk 0:13:22.8]} 23... hxg4 {[%clk 0:24:32.5]} 24. h5 {[%clk 0:12:40.5]} 24... Qb6+ {[%clk 0:24:20.1]} 25. Kg2 {[%clk 0:12:32.9]} 25... Qxb2+ {[%clk 0:24:23.6]} 26. Ne2 {[%clk 0:12:36.7]} 26... Rd4 {[%clk 0:24:14.5]} 0-1

[Event "Live Chess"]
[Site "Chess.com"]
[Date "2021.09.10"]
[Round "3"]
[White "Swarnapuri"]
[Black "SelfishShellfish"]
[Result "1-0"]
[CurrentPosition "3rR3/1p1P3k/1P3r2/3R2p1/6p1/P7/5P2/6K1 b - -"]
[Timezone "UTC"]
[ECO "A07"]
[ECOUrl "https://www.chess.com/openings/Kings-Indian-Attack-Yugoslav-Variation...4.O-O-Bf5-5.d3-e6"]
[UTCDate "2021.09.10"]
[UTCTime "01:30:17"]
[WhiteElo "2475"]
[BlackElo "2314"]
[TimeControl "2100+5"]
[Termination "Swarnapuri won by resignation"]
[StartTime "01:30:17"]
[EndDate "2021.09.10"]
[EndTime "02:48:47"]
[Link "https://www.chess.com/game/live/24976281927"]

1. Nf3 {[%clk 0:35:00.5]} 1... d5 {[%clk 0:35:01.8]} 2. g3 {[%clk 0:35:03.6]} 2... Nf6 {[%clk 0:35:03.9]} 3. Bg2 {[%clk 0:35:06.5]} 3... c6 {[%clk 0:35:07.7]} 4. O-O {[%clk 0:35:06.9]} 4... Bf5 {[%clk 0:35:11.5]} 5. d3 {[%clk 0:35:09.2]} 5... e6 {[%clk 0:35:14.9]} 6. b3 {[%clk 0:35:09.4]} 6... Be7 {[%clk 0:35:12.9]} 7. Bb2 {[%clk 0:35:11.3]} 7... h6 {[%clk 0:35:14.7]} 8. Nbd2 {[%clk 0:35:09.9]} 8... O-O {[%clk 0:35:18.1]} 9. Qe1 {[%clk 0:35:12.5]} 9... Bh7 {[%clk 0:35:17.1]} 10. e4 {[%clk 0:35:14.7]} 10... a5 {[%clk 0:35:20]} 11. a3 {[%clk 0:35:18.1]} 11... Na6 {[%clk 0:35:10.9]} 12. Ne5 {[%clk 0:33:36.7]} 12... Nd7 {[%clk 0:32:25.7]} 13. Nxd7 {[%clk 0:31:41.9]} 13... Qxd7 {[%clk 0:32:29.4]} 14. Qe2 {[%clk 0:31:45.1]} 14... Qd8 {[%clk 0:31:23.5]} 15. d4 {[%clk 0:28:43.9]} 15... a4 {[%clk 0:28:02]} 16. c4 {[%clk 0:25:41.5]} 16... dxe4 {[%clk 0:25:42.9]} 17. bxa4 {[%clk 0:18:08.1]} 17... f5 {[%clk 0:22:57]} 18. Nb3 {[%clk 0:14:34.4]} 18... Bf6 {[%clk 0:18:50.3]} 19. Rfd1 {[%clk 0:13:29]} 19... Nc7 {[%clk 0:15:23.9]} 20. a5 {[%clk 0:13:23.8]} 20... Qe7 {[%clk 0:15:23.4]} 21. Bc3 {[%clk 0:12:25.1]} 21... Rfe8 {[%clk 0:15:12.1]} 22. Nc5 {[%clk 0:07:47.9]} 22... Na6 {[%clk 0:13:29.7]} 23. Na4 {[%clk 0:07:33.3]} 23... Rad8 {[%clk 0:12:44.1]} 24. Qb2 {[%clk 0:06:21.4]} 24... Bg6 {[%clk 0:08:47.1]} 25. Rab1 {[%clk 0:06:21.8]} 25... Bh5 {[%clk 0:08:44.9]} 26. Re1 {[%clk 0:06:25.2]} 26... Rb8 {[%clk 0:07:28.9]} 27. Nb6 {[%clk 0:06:09]} 27... Red8 {[%clk 0:07:03.1]} 28. Bf1 {[%clk 0:05:49]} 28... g6 {[%clk 0:05:53.4]} 29. d5 {[%clk 0:05:10.1]} 29... Bxc3 {[%clk 0:05:25]} 30. Qxc3 {[%clk 0:05:15]} 30... Nc5 {[%clk 0:04:15.4]} 31. Rbc1 {[%clk 0:03:01.2]} 31... e5 {[%clk 0:03:52.3]} 32. Rc2 {[%clk 0:02:05.1]} 32... Kh7 {[%clk 0:03:34.4]} 33. Rd2 {[%clk 0:01:57.6]} 33... Qd6 {[%clk 0:02:26.4]} 34. Bg2 {[%clk 0:01:39.3]} 34... Nd3 {[%clk 0:02:13.2]} 35. Re3 {[%clk 0:01:09.4]} 35... cxd5 {[%clk 0:01:55.6]} 36. cxd5 {[%clk 0:01:08.1]} 36... Nc5 {[%clk 0:00:45.8]} 37. Nc4 {[%clk 0:01:06.1]} 37... Qf6 {[%clk 0:00:46.2]} 38. d6 {[%clk 0:00:48.8]} 38... Nd7 {[%clk 0:00:18.9]} 39. Qb4 {[%clk 0:00:34.2]} 39... g5 {[%clk 0:00:22.3]} 40. Re1 {[%clk 0:00:23]} 40... Bg6 {[%clk 0:00:22.6]} 41. h3 {[%clk 0:00:21.6]} 41... h5 {[%clk 0:00:25.9]} 42. g4 {[%clk 0:00:25.9]} 42... hxg4 {[%clk 0:00:16.8]} 43. hxg4 {[%clk 0:00:30.8]} 43... fxg4 {[%clk 0:00:20.5]} 44. Bxe4 {[%clk 0:00:34.4]} 44... Bxe4 {[%clk 0:00:24.4]} 45. Rxe4 {[%clk 0:00:38.8]} 45... Qf3 {[%clk 0:00:27.7]} 46. Re3 {[%clk 0:00:41.7]} 46... Qf4 {[%clk 0:00:30.7]} 47. Nb6 {[%clk 0:00:29]} 47... Qf5 {[%clk 0:00:15.4]} 48. Rd5 {[%clk 0:00:23]} 48... Nxb6 {[%clk 0:00:13.2]} 49. axb6 {[%clk 0:00:25.2]} 49... Re8 {[%clk 0:00:15.9]} 50. d7 {[%clk 0:00:27.4]} 50... Rf8 {[%clk 0:00:20.4]} 51. Qe4 {[%clk 0:00:26.5]} 51... Qxe4 {[%clk 0:00:21.6]} 52. Rxe4 {[%clk 0:00:31.4]} 52... Rbd8 {[%clk 0:00:24.1]} 53. Rexe5 {[%clk 0:00:34.9]} 53... Rf6 {[%clk 0:00:28.7]} 54. Re8 {[%clk 0:00:36.3]} 1-0

[Event "Live Chess"]
[Site "Chess.com"]
[Date "2021.09.10"]
[Round "3"]
[White "austinjin666XD"]
[Black "sdandek"]
[Result "1/2-1/2"]
[CurrentPosition "5k2/pp3pb1/4p1p1/q2nP3/2BP4/P5Q1/5P2/3R1K2 b - -"]
[Timezone "UTC"]
[ECO "B06"]
[ECOUrl "https://www.chess.com/openings/Modern-Defense-with-1-e4-2.d4-Bg7-3.Nf3"]
[UTCDate "2021.09.10"]
[UTCTime "01:30:17"]
[WhiteElo "1318"]
[BlackElo "2034"]
[TimeControl "2100+5"]
[Termination "Game drawn by repetition"]
[StartTime "01:30:17"]
[EndDate "2021.09.10"]
[EndTime "02:45:01"]
[Link "https://www.chess.com/game/live/24976282495"]

1. e4 {[%clk 0:35:03.5]} 1... g6 {[%clk 0:35:00]} 2. d4 {[%clk 0:35:03.7]} 2... Bg7 {[%clk 0:35:02.5]} 3. Nf3 {[%clk 0:34:55]} 3... c6 {[%clk 0:34:49.8]} 4. c4 {[%clk 0:34:43.8]} 4... d5 {[%clk 0:32:36.1]} 5. e5 {[%clk 0:34:11.5]} 5... Bg4 {[%clk 0:30:25.6]} 6. Nc3 {[%clk 0:32:07]} 6... e6 {[%clk 0:28:49.6]} 7. h3 {[%clk 0:31:00.6]} 7... Bxf3 {[%clk 0:28:49.1]} 8. Qxf3 {[%clk 0:31:05.5]} 8... dxc4 {[%clk 0:28:18.8]} 9. Be3 {[%clk 0:30:44]} 9... Ne7 {[%clk 0:26:23.3]} 10. Bxc4 {[%clk 0:29:41.4]} 10... O-O {[%clk 0:19:05.9]} 11. g4 {[%clk 0:21:16.6]} 11... Nd5 {[%clk 0:17:54.6]} 12. g5 {[%clk 0:17:44.4]} 12... Nxc3 {[%clk 0:15:30]} 13. bxc3 {[%clk 0:17:42.2]} 13... Nd7 {[%clk 0:15:19.7]} 14. h4 {[%clk 0:16:55.1]} 14... Qe7 {[%clk 0:11:54.8]} 15. a3 {[%clk 0:13:59.4]} 15... Rfc8 {[%clk 0:11:03.5]} 16. h5 {[%clk 0:12:03.8]} 16... Rab8 {[%clk 0:09:46.1]} 17. hxg6 {[%clk 0:10:24.2]} 17... hxg6 {[%clk 0:09:44.3]} 18. Qh3 {[%clk 0:08:41.9]} 18... c5 {[%clk 0:09:20.9]} 19. Bd3 {[%clk 0:07:23.7]} 19... cxd4 {[%clk 0:08:57.4]} 20. Qh7+ {[%clk 0:06:25.7]} 20... Kf8 {[%clk 0:08:58.8]} 21. cxd4 {[%clk 0:04:04.6]} 21... Rc3 {[%clk 0:07:29.4]} 22. Bb5 {[%clk 0:03:17.9]} 22... Rbc8 {[%clk 0:06:43.9]} 23. Bd2 {[%clk 0:02:47.8]} 23... Nb6 {[%clk 0:03:44.4]} 24. Bxc3 {[%clk 0:02:16.6]} 24... Rxc3 {[%clk 0:03:46.3]} 25. Rh3 {[%clk 0:02:10.5]} 25... Rxh3 {[%clk 0:02:57.5]} 26. Qxh3 {[%clk 0:02:07.6]} 26... Qxg5 {[%clk 0:02:59.9]} 27. Qg3 {[%clk 0:01:38.1]} 27... Qd8 {[%clk 0:02:35.2]} 28. Rd1 {[%clk 0:01:26.5]} 28... Nd5 {[%clk 0:02:26.4]} 29. Bc4 {[%clk 0:01:14.1]} 29... Qa5+ {[%clk 0:02:06.1]} 30. Kf1 {[%clk 0:01:03.3]} 30... Nb6 {[%clk 0:00:30]} 31. Be2 {[%clk 0:00:51]} 31... Nd5 {[%clk 0:00:22.1]} 32. Bc4 {[%clk 0:00:37]} 32... Nb6 {[%clk 0:00:24.3]} 33. Be2 {[%clk 0:00:40.4]} 33... Nd5 {[%clk 0:00:24.1]} 34. Bc4 {[%clk 0:00:43.7]} 1/2-1/2

[Event "Live Chess"]
[Site "Chess.com"]
[Date "2021.09.10"]
[Round "3"]
[White "jgray43"]
[Black "chessappeals"]
[Result "0-1"]
[CurrentPosition "2k5/1pp5/p7/3p2p1/5p2/P1P5/1PP2q1r/1K1R4 w - -"]
[Timezone "UTC"]
[ECO "C42"]
[ECOUrl "https://www.chess.com/openings/Petrovs-Defense-Three-Knights-Game"]
[UTCDate "2021.09.10"]
[UTCTime "01:30:17"]
[WhiteElo "1442"]
[BlackElo "1750"]
[TimeControl "2100+5"]
[Termination "chessappeals won by resignation"]
[StartTime "01:30:17"]
[EndDate "2021.09.10"]
[EndTime "02:22:30"]
[Link "https://www.chess.com/game/live/24976282885"]

1. e4 {[%clk 0:35:05]} 1... e5 {[%clk 0:35:02]} 2. Nf3 {[%clk 0:35:07.7]} 2... Nf6 {[%clk 0:35:05.2]} 3. Nc3 {[%clk 0:35:10.8]} 3... Bb4 {[%clk 0:35:00.9]} 4. a3 {[%clk 0:35:10.2]} 4... Bxc3 {[%clk 0:34:42.7]} 5. dxc3 {[%clk 0:35:13.2]} 5... d6 {[%clk 0:33:48.9]} 6. Bg5 {[%clk 0:35:05.7]} 6... h6 {[%clk 0:32:47.6]} 7. Bh4 {[%clk 0:35:07.3]} 7... Bg4 {[%clk 0:31:14]} 8. h3 {[%clk 0:35:04.2]} 8... Bh5 {[%clk 0:30:43.4]} 9. Bc4 {[%clk 0:34:40.9]} 9... g5 {[%clk 0:28:33.6]} 10. Bg3 {[%clk 0:34:34.3]} 10... Nxe4 {[%clk 0:27:28.7]} 11. Bh2 {[%clk 0:34:03.1]} 11... Qf6 {[%clk 0:24:23.7]} 12. Qd3 {[%clk 0:33:13.4]} 12... Nc5 {[%clk 0:22:26.4]} 13. Qe3 {[%clk 0:32:04.9]} 13... Bxf3 {[%clk 0:21:47.9]} 14. gxf3 {[%clk 0:31:42.4]} 14... Nc6 {[%clk 0:20:59.7]} 15. O-O-O {[%clk 0:31:30.6]} 15... Ne6 {[%clk 0:15:35]} 16. Bb5 {[%clk 0:30:17]} 16... a6 {[%clk 0:14:52.5]} 17. Ba4 {[%clk 0:30:14.2]} 17... Nf4 {[%clk 0:13:43.7]} 18. Qe4 {[%clk 0:29:16.8]} 18... d5 {[%clk 0:11:55.1]} 19. Qe3 {[%clk 0:27:09.5]} 19... O-O-O {[%clk 0:11:20]} 20. Bxc6 {[%clk 0:26:17.8]} 20... Qxc6 {[%clk 0:10:44.2]} 21. Qxe5 {[%clk 0:25:58.5]} 21... Rhe8 {[%clk 0:09:40.9]} 22. Qf5+ {[%clk 0:24:53]} 22... Qe6 {[%clk 0:09:16.4]} 23. Qg4 {[%clk 0:21:29.3]} 23... f5 {[%clk 0:08:55.6]} 24. Qg1 {[%clk 0:21:11.7]} 24... Ne2+ {[%clk 0:08:51.3]} 25. Kb1 {[%clk 0:20:09.4]} 25... Nxg1 {[%clk 0:08:49.8]} 26. Rhxg1 {[%clk 0:20:04.4]} 26... f4 {[%clk 0:08:40.7]} 27. h4 {[%clk 0:19:40.3]} 27... Qh3 {[%clk 0:08:07]} 28. Rh1 {[%clk 0:19:29.5]} 28... Qxf3 {[%clk 0:07:48.7]} 29. hxg5 {[%clk 0:19:22.3]} 29... hxg5 {[%clk 0:07:41.8]} 30. Rhe1 {[%clk 0:18:15.3]} 30... Rxe1 {[%clk 0:07:27]} 31. Rxe1 {[%clk 0:18:18]} 31... Qxf2 {[%clk 0:07:17.4]} 32. Rh1 {[%clk 0:17:52.7]} 32... Rh8 {[%clk 0:07:10.1]} 33. Rd1 {[%clk 0:17:39.7]} 33... Rxh2 {[%clk 0:07:03.2]} 0-1

[Event "Live Chess"]
[Site "Chess.com"]
[Date "2021.09.10"]
[Round "3"]
[White "2Nf31-0"]
[Black "hip_hop_99"]
[Result "1/2-1/2"]
[CurrentPosition "R7/2r5/4kp2/4p3/4P3/1K1P4/8/8 b - -"]
[Timezone "UTC"]
[ECO "C53"]
[ECOUrl "https://www.chess.com/openings/Giuoco-Piano-Game-Main-Line-Giuoco-Pianissimo-Variation"]
[UTCDate "2021.09.10"]
[UTCTime "01:30:13"]
[WhiteElo "1390"]
[BlackElo "1658"]
[TimeControl "2100+5"]
[Termination "Game drawn by agreement"]
[StartTime "01:30:13"]
[EndDate "2021.09.10"]
[EndTime "02:25:06"]
[Link "https://www.chess.com/game/live/24976283359"]

1. e4 {[%clk 0:34:54]} 1... e5 {[%clk 0:35:03.5]} 2. Nf3 {[%clk 0:34:55.8]} 2... Nc6 {[%clk 0:35:07.2]} 3. Bc4 {[%clk 0:34:57.3]} 3... Bc5 {[%clk 0:35:11.1]} 4. c3 {[%clk 0:35:00.1]} 4... Nf6 {[%clk 0:35:12.1]} 5. d3 {[%clk 0:35:02.2]} 5... d6 {[%clk 0:35:07]} 6. h3 {[%clk 0:34:57.9]} 6... h6 {[%clk 0:35:07.8]} 7. a4 {[%clk 0:34:52.6]} 7... a6 {[%clk 0:35:09.6]} 8. Nbd2 {[%clk 0:34:50.5]} 8... Be6 {[%clk 0:35:09.6]} 9. O-O {[%clk 0:34:45.7]} 9... O-O {[%clk 0:35:13.1]} 10. Re1 {[%clk 0:34:45.7]} 10... Bxc4 {[%clk 0:35:09.7]} 11. Nxc4 {[%clk 0:34:46.5]} 11... b5 {[%clk 0:35:12.4]} 12. Ne3 {[%clk 0:34:35.9]} 12... Qd7 {[%clk 0:34:39.8]} 13. Nf5 {[%clk 0:34:13.6]} 13... Ne7 {[%clk 0:34:28.3]} 14. N3h4 {[%clk 0:33:46.8]} 14... Kh7 {[%clk 0:33:53.4]} 15. b4 {[%clk 0:32:11.7]} 15... Bb6 {[%clk 0:33:50]} 16. a5 {[%clk 0:32:04.4]} 16... Ba7 {[%clk 0:33:52.9]} 17. Qf3 {[%clk 0:31:52.3]} 17... Ng6 {[%clk 0:32:05.7]} 18. Nxh6 {[%clk 0:30:15]} 18... Nxh4 {[%clk 0:30:35]} 19. Qg3 {[%clk 0:29:19.6]} 19... Nxg2 {[%clk 0:29:56.2]} 20. Nf5 {[%clk 0:27:37.1]} 20... g6 {[%clk 0:28:08.3]} 21. Kxg2 {[%clk 0:26:25.7]} 21... Nh5 {[%clk 0:27:47.1]} 22. Qh4 {[%clk 0:26:01.8]} 22... Rg8 {[%clk 0:27:44.1]} 23. Kh2 {[%clk 0:25:31.6]} 23... Qd8 {[%clk 0:25:09]} 24. Qxd8 {[%clk 0:24:57.4]} 24... Rgxd8 {[%clk 0:24:53.4]} 25. Ne3 {[%clk 0:24:44.5]} 25... Nf4 {[%clk 0:24:49.8]} 26. Rd1 {[%clk 0:24:08.1]} 26... Kg7 {[%clk 0:24:25.3]} 27. Ng2 {[%clk 0:23:31.2]} 27... Ne2 {[%clk 0:23:30.3]} 28. Be3 {[%clk 0:23:08.1]} 28... Nxc3 {[%clk 0:22:19]} 29. Rdc1 {[%clk 0:22:46.9]} 29... Bd4 {[%clk 0:21:56.9]} 30. Ra3 {[%clk 0:22:01]} 30... Bxe3 {[%clk 0:16:56.9]} 31. Nxe3 {[%clk 0:21:53.2]} 31... Ne2 {[%clk 0:16:53.8]} 32. Rxc7 {[%clk 0:21:47.9]} 32... Nf4 {[%clk 0:15:30]} 33. Kg3 {[%clk 0:20:33.4]} 33... Rh8 {[%clk 0:15:04.6]} 34. h4 {[%clk 0:20:00]} 34... Rh5 {[%clk 0:14:46.1]} 35. Ng2 {[%clk 0:19:06.2]} 35... Nxg2 {[%clk 0:14:43.6]} 36. Kxg2 {[%clk 0:19:08.9]} 36... Rxh4 {[%clk 0:14:47.8]} 37. Rd7 {[%clk 0:19:10.3]} 37... Rah8 {[%clk 0:14:49.9]} 38. Rxd6 {[%clk 0:19:04.9]} 38... Rh2+ {[%clk 0:14:53.3]} 39. Kf3 {[%clk 0:19:05.5]} 39... R8h3+ {[%clk 0:14:49.1]} 40. Ke2 {[%clk 0:19:06.4]} 40... Rg2 {[%clk 0:14:14.1]} 41. Kf1 {[%clk 0:18:31.8]} 41... Rhh2 {[%clk 0:13:17.5]} 42. Ra2 {[%clk 0:18:29.6]} 42... g5 {[%clk 0:13:20.4]} 43. Rxa6 {[%clk 0:18:24.2]} 43... g4 {[%clk 0:13:24.6]} 44. Rc6 {[%clk 0:17:25]} 44... g3 {[%clk 0:13:27]} 45. Rcc2 {[%clk 0:17:22.2]} 45... gxf2 {[%clk 0:12:56]} 46. Rxf2 {[%clk 0:17:13.2]} 46... Rxf2+ {[%clk 0:12:59.3]} 47. Rxf2 {[%clk 0:17:16.1]} 47... Rh1+ {[%clk 0:12:50.6]} 48. Ke2 {[%clk 0:17:17.5]} 48... Ra1 {[%clk 0:11:59.1]} 49. Rf5 {[%clk 0:16:48.6]} 49... f6 {[%clk 0:11:59.3]} 50. Rh5 {[%clk 0:16:40.9]} 50... Ra4 {[%clk 0:12:00.4]} 51. Kd2 {[%clk 0:16:21.1]} 51... Rxb4 {[%clk 0:12:04.2]} 52. Kc3 {[%clk 0:16:20.3]} 52... Ra4 {[%clk 0:12:06.4]} 53. Rh2 {[%clk 0:16:11.2]} 53... Rxa5 {[%clk 0:10:11.2]} 54. Kb4 {[%clk 0:16:10.6]} 54... Ra1 {[%clk 0:10:12]} 55. Kxb5 {[%clk 0:16:11]} 55... Rd1 {[%clk 0:10:11.2]} 56. Kc4 {[%clk 0:16:12.9]} 56... Kf7 {[%clk 0:10:01.7]} 57. Rh7+ {[%clk 0:16:01.3]} 57... Ke6 {[%clk 0:10:05.3]} 58. Rh8 {[%clk 0:15:58.6]} 58... Rc1+ {[%clk 0:10:01.6]} 59. Kb3 {[%clk 0:15:58.8]} 59... Rc7 {[%clk 0:10:00.7]} 60. Ra8 {[%clk 0:15:51.9]} 1/2-1/2

[Event "Live Chess"]
[Site "Chess.com"]
[Date "2021.09.10"]
[Round "3"]
[White "Thechesskid2021"]
[Black "aaroncraig602"]
[Result "1-0"]
[CurrentPosition "3B4/3b2k1/2r1p2p/3p4/NQ3P2/KPP3R1/2q5/8 b - -"]
[Timezone "UTC"]
[ECO "B41"]
[ECOUrl "https://www.chess.com/openings/Sicilian-Defense-Kan-Variation"]
[UTCDate "2021.09.10"]
[UTCTime "01:30:20"]
[WhiteElo "1649"]
[BlackElo "1451"]
[TimeControl "2100+5"]
[Termination "Thechesskid2021 won by resignation"]
[StartTime "01:30:20"]
[EndDate "2021.09.10"]
[EndTime "02:41:25"]
[Link "https://www.chess.com/game/live/24976283879"]

1. e4 {[%clk 0:35:04.9]} 1... c5 {[%clk 0:34:46.8]} 2. Nf3 {[%clk 0:35:08.1]} 2... e6 {[%clk 0:34:44]} 3. d4 {[%clk 0:34:55.5]} 3... cxd4 {[%clk 0:34:46.6]} 4. Nxd4 {[%clk 0:34:58.5]} 4... a6 {[%clk 0:34:51.1]} 5. a3 {[%clk 0:35:02.2]} 5... Qc7 {[%clk 0:34:38.3]} 6. Nc3 {[%clk 0:34:39.9]} 6... Nf6 {[%clk 0:34:39.7]} 7. Be3 {[%clk 0:34:05.3]} 7... Be7 {[%clk 0:33:47.7]} 8. Be2 {[%clk 0:33:42.7]} 8... O-O {[%clk 0:33:46.2]} 9. Qd2 {[%clk 0:33:22.9]} 9... b5 {[%clk 0:33:28.1]} 10. g4 {[%clk 0:32:12]} 10... Bb7 {[%clk 0:33:17.9]} 11. f3 {[%clk 0:31:51.2]} 11... d6 {[%clk 0:32:46.6]} 12. h4 {[%clk 0:31:01.3]} 12... Nc6 {[%clk 0:32:16.9]} 13. g5 {[%clk 0:30:27.6]} 13... Nd7 {[%clk 0:32:09.9]} 14. h5 {[%clk 0:29:23.5]} 14... Nxd4 {[%clk 0:31:52.1]} 15. Bxd4 {[%clk 0:28:43.8]} 15... Ne5 {[%clk 0:28:45.7]} 16. f4 {[%clk 0:25:03.6]} 16... Nc4 {[%clk 0:28:27.1]} 17. Bxc4 {[%clk 0:25:04.5]} 17... Qxc4 {[%clk 0:28:21.1]} 18. O-O-O {[%clk 0:19:09.2]} 18... a5 {[%clk 0:25:08.8]} 19. b3 {[%clk 0:15:43.2]} 19... Qc6 {[%clk 0:24:10.8]} 20. g6 {[%clk 0:07:34]} 20... h6 {[%clk 0:22:49.2]} 21. gxf7+ {[%clk 0:06:16.5]} 21... Rxf7 {[%clk 0:22:40]} 22. Rhf1 {[%clk 0:05:38.9]} 22... b4 {[%clk 0:22:02.6]} 23. Na4 {[%clk 0:05:14.9]} 23... Qxe4 {[%clk 0:20:00.2]} 24. Rde1 {[%clk 0:04:29.4]} 24... Qf5 {[%clk 0:19:52.9]} 25. axb4 {[%clk 0:04:27.4]} 25... axb4 {[%clk 0:19:49.3]} 26. Qxb4 {[%clk 0:04:16.9]} 26... Rc8 {[%clk 0:19:45.4]} 27. c3 {[%clk 0:03:33.5]} 27... Ba6 {[%clk 0:17:12]} 28. Rf3 {[%clk 0:01:25.2]} 28... d5 {[%clk 0:16:54.3]} 29. Bc5 {[%clk 0:01:02.4]} 29... Bh4 {[%clk 0:14:37]} 30. Ree3 {[%clk 0:00:22.6]} 30... Rb7 {[%clk 0:11:24.5]} 31. Nb6 {[%clk 0:00:15]} 31... Rcc7 {[%clk 0:10:22.7]} 32. Qa5 {[%clk 0:00:14.1]} 32... Ra7 {[%clk 0:10:10.8]} 33. Na4 {[%clk 0:00:16.9]} 33... Bc8 {[%clk 0:10:00.9]} 34. Bxa7 {[%clk 0:00:18.6]} 34... Bd8 {[%clk 0:08:40.1]} 35. Bb6 {[%clk 0:00:21.2]} 35... Rc6 {[%clk 0:08:18.2]} 36. Bxd8 {[%clk 0:00:23.7]} 36... Qxh5 {[%clk 0:07:23.5]} 37. Qb4 {[%clk 0:00:18.4]} 37... Qh1+ {[%clk 0:07:22.9]} 38. Kb2 {[%clk 0:00:22.6]} 38... Qg2+ {[%clk 0:07:23.4]} 39. Ka3 {[%clk 0:00:26]} 39... Bd7 {[%clk 0:06:48.9]} 40. Rg3 {[%clk 0:00:21.9]} 40... Qc2 {[%clk 0:06:46.2]} 41. Rxg7+ {[%clk 0:00:20.8]} 41... Kxg7 {[%clk 0:06:32.5]} 42. Rg3+ {[%clk 0:00:25]} 1-0